[Event "Early-Titled-Tuesday-Blitz-February-13-2024"]
[Site "Chess.com"]
[Date "2024.02.13"]
[Round "3"]
[White "PabloZarnicki"]
[Black "Zohid6"]
[Result "1-0"]
[WhiteElo "2634"]
[BlackElo "2832"]
[TimeControl "180+1"]
[EndTime "8:33:34 PST"]
[Termination "PabloZarnicki won on time"]

1. e4 {[%clk 0:03:00.9]} 1... e5 {[%clk 0:02:59]} 2. Nf3 {[%clk 0:03:00.7]} 2...
Nf6 {[%clk 0:02:55.5]} 3. Nxe5 {[%clk 0:03:00.2]} 3... d6 {[%clk 0:02:55.2]} 4.
Nf3 {[%clk 0:03:00]} 4... Nxe4 {[%clk 0:02:55.2]} 5. Bd3 {[%clk 0:03:00]} 5...
Nf6 {[%clk 0:02:51.6]} 6. O-O {[%clk 0:02:59.4]} 6... Be7 {[%clk 0:02:49.3]} 7.
h3 {[%clk 0:03:00.3]} 7... O-O {[%clk 0:02:49.1]} 8. c3 {[%clk 0:03:01.2]} 8...
d5 {[%clk 0:02:47.5]} 9. Bc2 {[%clk 0:03:01.3]} 9... c5 {[%clk 0:02:47.9]} 10.
d4 {[%clk 0:03:01.3]} 10... Nc6 {[%clk 0:02:47.9]} 11. dxc5 {[%clk 0:02:57.3]}
11... Bxc5 {[%clk 0:02:48.8]} 12. Nbd2 {[%clk 0:02:57.4]} 12... h6 {[%clk
0:02:46.5]} 13. Nb3 {[%clk 0:02:57.2]} 13... Bb6 {[%clk 0:02:46.3]} 14. Nbd4
{[%clk 0:02:57.1]} 14... Ne4 {[%clk 0:02:45.5]} 15. Be3 {[%clk 0:02:54.6]} 15...
Qf6 {[%clk 0:02:45.2]} 16. Qd3 {[%clk 0:02:46.9]} 16... Re8 {[%clk 0:02:40.5]}
17. Rfe1 {[%clk 0:02:44.4]} 17... Bd7 {[%clk 0:02:29.3]} 18. Nb3 {[%clk
0:02:39.7]} 18... Bxe3 {[%clk 0:01:57.2]} 19. Rxe3 {[%clk 0:02:33.2]} 19... Rad8
{[%clk 0:01:53.4]} 20. Rae1 {[%clk 0:02:24.4]} 20... Bf5 {[%clk 0:01:49.5]} 21.
Qd1 {[%clk 0:02:17.1]} 21... Bg6 {[%clk 0:01:42.5]} 22. Nbd4 {[%clk 0:02:13.9]}
22... Ne5 {[%clk 0:01:41.6]} 23. Nxe5 {[%clk 0:02:13.3]} 23... Qxf2+ {[%clk
0:01:40.5]} 24. Kh2 {[%clk 0:02:05.1]} 24... Qf4+ {[%clk 0:01:31.5]} 25. Kg1
{[%clk 0:02:01.3]} 25... Rxe5 {[%clk 0:01:28.8]} 26. Nf3 {[%clk 0:01:58.4]}
26... Ree8 {[%clk 0:01:14.6]} 27. Qd4 {[%clk 0:01:50]} 27... b6 {[%clk
0:01:04.4]} 28. R3e2 {[%clk 0:01:47.2]} 28... Qg3 {[%clk 0:00:53.4]} 29. Nd2
{[%clk 0:01:34.3]} 29... Nf6 {[%clk 0:00:47]} 30. Rxe8+ {[%clk 0:01:26.1]} 30...
Nxe8 {[%clk 0:00:46]} 31. Re3 {[%clk 0:01:24]} 31... Qd6 {[%clk 0:00:44.5]} 32.
Nc4 {[%clk 0:01:12.2]} 32... Qf6 {[%clk 0:00:25.7]} 33. Bxg6 {[%clk 0:01:06.1]}
33... Qxd4 {[%clk 0:00:17.7]} 34. cxd4 {[%clk 0:01:05.7]} 34... dxc4 {[%clk
0:00:18]} 35. Bc2 {[%clk 0:00:25.8]} 35... Nf6 {[%clk 0:00:17.9]} 36. Re7 {[%clk
0:00:25.3]} 36... Rxd4 {[%clk 0:00:17.6]} 37. Rxa7 {[%clk 0:00:24.6]} 37... g6
{[%clk 0:00:17.7]} 38. Rb7 {[%clk 0:00:20.2]} 38... Nd5 {[%clk 0:00:17.8]} 39.
Ba4 {[%clk 0:00:15.4]} 39... Kf8 {[%clk 0:00:12.9]} 40. Bc6 {[%clk 0:00:14.2]}
40... Ne3 {[%clk 0:00:08.2]} 41. Rxb6 {[%clk 0:00:12.8]} 41... Rd2 {[%clk
0:00:08.4]} 42. a4 {[%clk 0:00:12.1]} 42... Rd1+ {[%clk 0:00:08.2]} 43. Kf2
{[%clk 0:00:11.5]} 43... Nf5 {[%clk 0:00:08]} 44. a5 {[%clk 0:00:11.1]} 44...
Ra1 {[%clk 0:00:08.1]} 45. a6 {[%clk 0:00:10.8]} 45... Nd4 {[%clk 0:00:08]} 46.
Bb7 {[%clk 0:00:09.1]} 46... Ra2 {[%clk 0:00:07.4]} 47. Ke3 {[%clk 0:00:09.2]}
47... Ne6 {[%clk 0:00:05.7]} 48. Bc8 {[%clk 0:00:09]} 48... Nc5 {[%clk
0:00:04.5]} 49. Rc6 {[%clk 0:00:09.3]} 49... Ne6 {[%clk 0:00:02.4]} 50. Bxe6
{[%clk 0:00:09.1]} 50... fxe6 {[%clk 0:00:03.3]} 51. Kd4 {[%clk 0:00:09]} 51...
Ke7 {[%clk 0:00:03.3]} 52. Kxc4 {[%clk 0:00:08.9]} 52... Kd7 {[%clk 0:00:03]}
53. Rb6 {[%clk 0:00:09.2]} 53... h5 {[%clk 0:00:01.9]} 54. b4 {[%clk 0:00:09]}
54... Rxg2 {[%clk 0:00:02.1]} 55. b5 {[%clk 0:00:08.1]} 55... Ra2 {[%clk
0:00:02]} 56. Rb7+ {[%clk 0:00:07.9]} 56... Kd6 {[%clk 0:00:02.7]} 57. Rg7
{[%clk 0:00:08]} 57... Ke5 {[%clk 0:00:02.2]} 58. a7 {[%clk 0:00:08.4]} 58...
Ra1 {[%clk 0:00:01.6]} 59. b6 {[%clk 0:00:08.8]} 59... Kf6 {[%clk 0:00:02.5]}
60. Rc7 {[%clk 0:00:07.9]} 60... Rc1+ {[%clk 0:00:02.4]} 61. Kb5 {[%clk
0:00:08.2]} 61... Rb1+ {[%clk 0:00:03.3]} 62. Kc6 {[%clk 0:00:08.5]} 62... Ra1
{[%clk 0:00:04.2]} 63. Kb7 {[%clk 0:00:08.8]} 63... e5 {[%clk 0:00:04]} 64. a8=Q
{[%clk 0:00:09.2]} 64... Rxa8 {[%clk 0:00:04.5]} 65. Kxa8 {[%clk 0:00:10.1]}
65... Kf5 {[%clk 0:00:05.4]} 66. b7 {[%clk 0:00:10.6]} 66... g5 {[%clk
0:00:06.1]} 67. b8=Q {[%clk 0:00:11.1]} 1-0

[Event "Early-Titled-Tuesday-Blitz-February-13-2024"]
[Site "Chess.com"]
[Date "2024.02.13"]
[Round "3"]
[White "FGHSMN"]
[Black "HamedWafa4"]
[Result "0-1"]
[WhiteElo "2978"]
[BlackElo "2762"]
[TimeControl "180+1"]
[EndTime "8:33:40 PST"]
[Termination "HamedWafa4 won by resignation"]

1. e4 {[%clk 0:03:00.4]} 1... e5 {[%clk 0:02:59.3]} 2. Nf3 {[%clk 0:03:00.6]}
2... Nc6 {[%clk 0:02:59.6]} 3. Nc3 {[%clk 0:03:01.2]} 3... Nf6 {[%clk
0:02:59.7]} 4. Bb5 {[%clk 0:03:01.9]} 4... Bb4 {[%clk 0:02:59.4]} 5. O-O {[%clk
0:02:59.9]} 5... O-O {[%clk 0:02:59.1]} 6. Bxc6 {[%clk 0:03:00.2]} 6... dxc6
{[%clk 0:02:59.8]} 7. d3 {[%clk 0:03:00.9]} 7... Re8 {[%clk 0:02:59.3]} 8. h3
{[%clk 0:03:00.2]} 8... Nd7 {[%clk 0:02:59.2]} 9. Ne2 {[%clk 0:02:58.9]} 9...
Nf8 {[%clk 0:02:59]} 10. Kh1 {[%clk 0:02:55.9]} 10... Ng6 {[%clk 0:02:56.4]} 11.
Nh2 {[%clk 0:02:48.9]} 11... Bd6 {[%clk 0:02:55]} 12. f4 {[%clk 0:02:48.9]}
12... exf4 {[%clk 0:02:55.3]} 13. Nxf4 {[%clk 0:02:49.8]} 13... Nxf4 {[%clk
0:02:56]} 14. Bxf4 {[%clk 0:02:49.9]} 14... Bxf4 {[%clk 0:02:56.9]} 15. Rxf4
{[%clk 0:02:50.4]} 15... Be6 {[%clk 0:02:57.8]} 16. Qd2 {[%clk 0:02:46.8]} 16...
c5 {[%clk 0:02:57.5]} 17. b3 {[%clk 0:02:33.7]} 17... a5 {[%clk 0:02:50.9]} 18.
Raf1 {[%clk 0:02:24.4]} 18... a4 {[%clk 0:02:50]} 19. Nf3 {[%clk 0:02:20.8]}
19... axb3 {[%clk 0:02:49.4]} 20. axb3 {[%clk 0:02:21.7]} 20... h6 {[%clk
0:02:44.8]} 21. Qc3 {[%clk 0:02:13.3]} 21... b6 {[%clk 0:02:41.9]} 22. Ne5
{[%clk 0:02:04.1]} 22... Rf8 {[%clk 0:02:30.8]} 23. R4f3 {[%clk 0:01:51.7]}
23... Ra2 {[%clk 0:01:58.9]} 24. R1f2 {[%clk 0:01:26.5]} 24... Qd6 {[%clk
0:01:52.6]} 25. h4 {[%clk 0:01:13.4]} 25... Qd8 {[%clk 0:01:22.5]} 26. Rf4
{[%clk 0:01:12.4]} 26... Qd6 {[%clk 0:01:18.8]} 27. h5 {[%clk 0:01:10.5]} 27...
Qd8 {[%clk 0:01:05]} 28. Nf3 {[%clk 0:00:58]} 28... Qd6 {[%clk 0:01:00.1]} 29.
Nh4 {[%clk 0:00:55.2]} 29... Qd8 {[%clk 0:00:59]} 30. g3 {[%clk 0:00:51.4]}
30... Qg5 {[%clk 0:00:56.3]} 31. Kg2 {[%clk 0:00:29.9]} 31... Qxh5 {[%clk
0:00:55.1]} 32. Nf5 {[%clk 0:00:25.1]} 32... Bxf5 {[%clk 0:00:47.4]} 33. Rxf5
{[%clk 0:00:26]} 33... Qg6 {[%clk 0:00:46.8]} 34. Qe5 {[%clk 0:00:24.4]} 34...
Qc6 {[%clk 0:00:41.2]} 35. Qe7 {[%clk 0:00:20.7]} 35... Qd6 {[%clk 0:00:30.1]}
36. Qxd6 {[%clk 0:00:17]} 36... cxd6 {[%clk 0:00:31]} 37. Rd5 {[%clk 0:00:17.9]}
37... Rd8 {[%clk 0:00:30.5]} 38. e5 {[%clk 0:00:18.5]} 38... Ra7 {[%clk
0:00:30.3]} 39. exd6 {[%clk 0:00:13.9]} 39... Rad7 {[%clk 0:00:30.7]} 40. Rdf5
{[%clk 0:00:11.2]} 40... f6 {[%clk 0:00:30.5]} 41. b4 {[%clk 0:00:09.8]} 41...
cxb4 {[%clk 0:00:28.9]} 42. Rb5 {[%clk 0:00:09.7]} 42... Rxd6 {[%clk 0:00:29.6]}
43. Rxb4 {[%clk 0:00:10.6]} 43... Rc8 {[%clk 0:00:30.2]} 44. Kg1 {[%clk
0:00:10.2]} 44... Rc3 {[%clk 0:00:30.2]} 45. Kf1 {[%clk 0:00:10.3]} 45... Rdc6
{[%clk 0:00:30.5]} 46. Rb2 {[%clk 0:00:11]} 46... Kf7 {[%clk 0:00:29.3]} 47. Ke1
{[%clk 0:00:10.9]} 47... Re6+ {[%clk 0:00:29.9]} 48. Kd2 {[%clk 0:00:11.5]}
48... Rcc6 {[%clk 0:00:30.5]} 49. c4 {[%clk 0:00:12.2]} 49... Re5 {[%clk
0:00:29.6]} 50. Rf3 {[%clk 0:00:12]} 50... Rd6 {[%clk 0:00:28.4]} 51. Kc3 {[%clk
0:00:12.3]} 51... Re1 {[%clk 0:00:27.9]} 52. Kb4 {[%clk 0:00:08.5]} 52... Rd1
{[%clk 0:00:27.5]} 53. Rb3 {[%clk 0:00:09.2]} 53... h5 {[%clk 0:00:26.4]} 54.
Kb5 {[%clk 0:00:09.8]} 54... g5 {[%clk 0:00:24.3]} 55. Ka6 {[%clk 0:00:10.2]}
55... Kg6 {[%clk 0:00:17]} 56. Rxb6 {[%clk 0:00:06.7]} 56... R1xd3 {[%clk
0:00:17.4]} 57. Rxd6 {[%clk 0:00:04.3]} 57... Rxf3 {[%clk 0:00:17]} 58. c5
{[%clk 0:00:03.6]} 58... Rxg3 {[%clk 0:00:17.6]} 59. c6 {[%clk 0:00:04.3]} 59...
Rc3 {[%clk 0:00:18.3]} 60. Kb5 {[%clk 0:00:05]} 60... h4 {[%clk 0:00:18.5]} 61.
Rd4 {[%clk 0:00:03]} 61... h3 {[%clk 0:00:17.5]} 62. Rd2 {[%clk 0:00:03.4]}
62... g4 {[%clk 0:00:17.3]} 63. Rh2 {[%clk 0:00:02.6]} 63... Kg5 {[%clk
0:00:16.4]} 64. Kb6 {[%clk 0:00:03.5]} 64... Kh4 {[%clk 0:00:16.4]} 65. c7
{[%clk 0:00:04.4]} 65... Rxc7 {[%clk 0:00:16.6]} 66. Kxc7 {[%clk 0:00:04.5]}
66... g3 {[%clk 0:00:17.5]} 67. Ra2 {[%clk 0:00:04.7]} 67... h2 {[%clk
0:00:18.1]} 68. Ra8 {[%clk 0:00:05]} 68... g2 {[%clk 0:00:17.3]} 69. Rh8+ {[%clk
0:00:05.2]} 69... Kg3 {[%clk 0:00:18]} 70. Rg8+ {[%clk 0:00:05.8]} 70... Kf2
{[%clk 0:00:18.6]} 71. Rg6 {[%clk 0:00:06.5]} 71... h1=Q {[%clk 0:00:18.5]} 72.
Rxf6+ {[%clk 0:00:07.4]} 72... Ke2 {[%clk 0:00:19.2]} 73. Re6+ {[%clk
0:00:07.9]} 73... Kf3 {[%clk 0:00:19.9]} 74. Rd6 {[%clk 0:00:08.6]} 74... g1=Q
{[%clk 0:00:19.7]} 0-1

[Event "Early-Titled-Tuesday-Blitz-February-13-2024"]
[Site "Chess.com"]
[Date "2024.02.13"]
[Round "3"]
[White "KarolKacprzak"]
[Black "ChessBliss09"]
[Result "1-0"]
[WhiteElo "2732"]
[BlackElo "2134"]
[TimeControl "180+1"]
[EndTime "8:33:40 PST"]
[Termination "KarolKacprzak won by checkmate"]

1. d4 {[%clk 0:03:00.9]} 1... Nf6 {[%clk 0:02:59.4]} 2. c4 {[%clk 0:02:59.7]}
2... e6 {[%clk 0:02:59.9]} 3. Nf3 {[%clk 0:02:50.4]} 3... d5 {[%clk 0:02:59.6]}
4. Nc3 {[%clk 0:02:47.3]} 4... Bb4 {[%clk 0:02:58.8]} 5. cxd5 {[%clk 0:02:41.7]}
5... exd5 {[%clk 0:02:58.1]} 6. Bf4 {[%clk 0:02:42.3]} 6... O-O {[%clk
0:02:55.1]} 7. e3 {[%clk 0:02:41.2]} 7... c5 {[%clk 0:02:54.9]} 8. Bd3 {[%clk
0:02:39]} 8... c4 {[%clk 0:02:52.8]} 9. Be2 {[%clk 0:02:31.8]} 9... Ne4 {[%clk
0:02:50.7]} 10. Rc1 {[%clk 0:02:28.2]} 10... Qa5 {[%clk 0:02:49.7]} 11. O-O
{[%clk 0:02:05.3]} 11... Bxc3 {[%clk 0:02:45.5]} 12. bxc3 {[%clk 0:02:06.2]}
12... Nxc3 {[%clk 0:02:45.1]} 13. Qd2 {[%clk 0:02:06.8]} 13... Nxe2+ {[%clk
0:02:45.2]} 14. Qxe2 {[%clk 0:02:07.7]} 14... Bf5 {[%clk 0:02:42.2]} 15. Rfe1
{[%clk 0:01:56.6]} 15... Nc6 {[%clk 0:02:36.4]} 16. h3 {[%clk 0:01:50.4]} 16...
b5 {[%clk 0:02:33.4]} 17. Bd6 {[%clk 0:01:48.5]} 17... Rfe8 {[%clk 0:02:29.3]}
18. Nh4 {[%clk 0:01:41.6]} 18... Bd3 {[%clk 0:02:21.6]} 19. Qh5 {[%clk
0:01:39.7]} 19... Bg6 {[%clk 0:02:17.6]} 20. Qxd5 {[%clk 0:01:38.1]} 20... Nb4
{[%clk 0:02:12.6]} 21. Bxb4 {[%clk 0:01:32]} 21... Qxb4 {[%clk 0:02:12.1]} 22.
Nxg6 {[%clk 0:01:32.9]} 22... hxg6 {[%clk 0:02:11.3]} 23. Rb1 {[%clk 0:01:33.8]}
23... Qd2 {[%clk 0:02:07.4]} 24. Qxb5 {[%clk 0:01:27.5]} 24... Qxa2 {[%clk
0:01:59.6]} 25. Rec1 {[%clk 0:01:19.7]} 25... Rec8 {[%clk 0:01:56]} 26. d5
{[%clk 0:00:55.4]} 26... c3 {[%clk 0:01:49]} 27. e4 {[%clk 0:00:48.9]} 27... Qd2
{[%clk 0:01:10]} 28. Rd1 {[%clk 0:00:36]} 28... Qf4 {[%clk 0:01:04.1]} 29. Re1
{[%clk 0:00:27.9]} 29... Rab8 {[%clk 0:00:59.5]} 30. Qa6 {[%clk 0:00:17.3]}
30... c2 {[%clk 0:00:46.6]} 31. Rbc1 {[%clk 0:00:16.5]} 31... Kh7 {[%clk
0:00:35.1]} 32. d6 {[%clk 0:00:16.3]} 32... Rb1 {[%clk 0:00:14.6]} 33. Rxb1
{[%clk 0:00:14.2]} 33... cxb1=Q {[%clk 0:00:12.9]} 34. Rxb1 {[%clk 0:00:14.3]}
34... Qxe4 {[%clk 0:00:13.3]} 35. Rd1 {[%clk 0:00:12.9]} 35... Rd8 {[%clk
0:00:12.1]} 36. Qxa7 {[%clk 0:00:12.4]} 36... Qe6 {[%clk 0:00:10.2]} 37. Qd4
{[%clk 0:00:11]} 37... Kg8 {[%clk 0:00:09.3]} 38. d7 {[%clk 0:00:09.7]} 38...
Kf8 {[%clk 0:00:08.6]} 39. Qc5+ {[%clk 0:00:10.2]} 39... Qe7 {[%clk 0:00:07.9]}
40. Qc7 {[%clk 0:00:10.8]} 40... f6 {[%clk 0:00:07.2]} 41. h4 {[%clk 0:00:10.5]}
41... Kf7 {[%clk 0:00:05.9]} 42. Qc4+ {[%clk 0:00:10.4]} 42... Qe6 {[%clk
0:00:05.2]} 43. Qc7 {[%clk 0:00:08.6]} 43... Qe7 {[%clk 0:00:05.5]} 44. Qc6
{[%clk 0:00:05.5]} 44... Qe6 {[%clk 0:00:05.1]} 45. Qb7 {[%clk 0:00:05.7]} 45...
Qe7 {[%clk 0:00:04.3]} 46. g3 {[%clk 0:00:04.3]} 46... f5 {[%clk 0:00:04.5]} 47.
Qc7 {[%clk 0:00:04.5]} 47... Kf8 {[%clk 0:00:02.6]} 48. Rd3 {[%clk 0:00:04]}
48... Kf7 {[%clk 0:00:02.8]} 49. Qc6 {[%clk 0:00:04.1]} 49... Qe6 {[%clk
0:00:02]} 50. Rd6 {[%clk 0:00:04.1]} 50... Qe7 {[%clk 0:00:02.2]} 51. Rxg6
{[%clk 0:00:03.6]} 51... Qe1+ {[%clk 0:00:02.9]} 52. Kg2 {[%clk 0:00:03.7]}
52... Qe4+ {[%clk 0:00:03.1]} 53. Qxe4 {[%clk 0:00:03.9]} 53... fxe4 {[%clk
0:00:03.9]} 54. Rd6 {[%clk 0:00:04.3]} 54... Ke7 {[%clk 0:00:04.2]} 55. Rd4
{[%clk 0:00:04.9]} 55... Rxd7 {[%clk 0:00:04.7]} 56. Rxe4+ {[%clk 0:00:04.9]}
56... Kf6 {[%clk 0:00:04.6]} 57. Re3 {[%clk 0:00:05.8]} 57... Rf7 {[%clk
0:00:05]} 58. Rf3+ {[%clk 0:00:06.1]} 58... Ke7 {[%clk 0:00:05.7]} 59. Rxf7+
{[%clk 0:00:07]} 59... Kxf7 {[%clk 0:00:06.6]} 60. Kf3 {[%clk 0:00:07.6]} 60...
g6 {[%clk 0:00:07.2]} 61. Kg4 {[%clk 0:00:08.5]} 61... Kf6 {[%clk 0:00:08]} 62.
Kf4 {[%clk 0:00:08.4]} 62... Kg7 {[%clk 0:00:08.9]} 63. Kg5 {[%clk 0:00:09.3]}
63... Kh7 {[%clk 0:00:09.4]} 64. g4 {[%clk 0:00:10]} 64... Kg7 {[%clk
0:00:10.3]} 65. f4 {[%clk 0:00:10.7]} 65... Kf7 {[%clk 0:00:10.7]} 66. f5 {[%clk
0:00:11]} 66... Kg7 {[%clk 0:00:11.6]} 67. fxg6 {[%clk 0:00:11.1]} 67... Kg8
{[%clk 0:00:12.2]} 68. h5 {[%clk 0:00:11.7]} 68... Kh8 {[%clk 0:00:13.1]} 69. h6
{[%clk 0:00:12.6]} 69... Kg8 {[%clk 0:00:13.8]} 70. Kf6 {[%clk 0:00:13.2]} 70...
Kh8 {[%clk 0:00:14.7]} 71. g7+ {[%clk 0:00:12.7]} 71... Kg8 {[%clk 0:00:15]} 72.
h7+ {[%clk 0:00:11.1]} 72... Kxh7 {[%clk 0:00:15.2]} 73. Kf7 {[%clk 0:00:10.9]}
73... Kh6 {[%clk 0:00:15.6]} 74. g5+ {[%clk 0:00:11.6]} 74... Kh5 {[%clk
0:00:14.7]} 75. g8=Q {[%clk 0:00:12.5]} 75... Kg4 {[%clk 0:00:14.6]} 76. g6
{[%clk 0:00:12.9]} 76... Kg3 {[%clk 0:00:15.5]} 77. g7 {[%clk 0:00:13.8]} 77...
Kg4 {[%clk 0:00:16.4]} 78. Qe8 {[%clk 0:00:14.3]} 78... Kf3 {[%clk 0:00:17.3]}
79. Kf8 {[%clk 0:00:14.5]} 79... Kf2 {[%clk 0:00:18.2]} 80. Qf7+ {[%clk
0:00:15.2]} 80... Ke2 {[%clk 0:00:18.4]} 81. g8=Q {[%clk 0:00:15.8]} 81... Ke3
{[%clk 0:00:19.3]} 82. Qg4 {[%clk 0:00:15.7]} 82... Kd2 {[%clk 0:00:19.4]} 83.
Qa2+ {[%clk 0:00:15.6]} 83... Ke3 {[%clk 0:00:19.1]} 84. Qb3+ {[%clk 0:00:15.4]}
84... Kf2 {[%clk 0:00:19.6]} 85. Qgf3+ {[%clk 0:00:13.8]} 85... Kg1 {[%clk
0:00:19.8]} 86. Qfc3 {[%clk 0:00:13.5]} 86... Kf2 {[%clk 0:00:19.8]} 87. Qcc2+
{[%clk 0:00:14.1]} 87... Kf1 {[%clk 0:00:20.4]} 88. Qbb1# {[%clk 0:00:15]} 1-0

[Event "Early-Titled-Tuesday-Blitz-February-13-2024"]
[Site "Chess.com"]
[Date "2024.02.13"]
[Round "3"]
[White "Let_it_be_1"]
[Black "MAGMAchess02"]
[Result "0-1"]
[WhiteElo "2572"]
[BlackElo "2288"]
[TimeControl "180+1"]
[EndTime "8:33:42 PST"]
[Termination "MAGMAchess02 won on time"]

1. e4 {[%clk 0:03:00.9]} 1... c6 {[%clk 0:02:57.1]} 2. d4 {[%clk 0:03:00.7]}
2... g6 {[%clk 0:02:57.6]} 3. Nc3 {[%clk 0:02:59.5]} 3... Bg7 {[%clk 0:02:57.2]}
4. f4 {[%clk 0:02:59.6]} 4... d5 {[%clk 0:02:57.3]} 5. Nf3 {[%clk 0:02:59.7]}
5... dxe4 {[%clk 0:02:50.7]} 6. Nxe4 {[%clk 0:02:59.6]} 6... Nf6 {[%clk
0:02:51.6]} 7. Nxf6+ {[%clk 0:02:58.6]} 7... Bxf6 {[%clk 0:02:48.5]} 8. Bc4
{[%clk 0:02:57.4]} 8... O-O {[%clk 0:02:41.5]} 9. O-O {[%clk 0:02:57.1]} 9...
Bg4 {[%clk 0:02:40.1]} 10. c3 {[%clk 0:02:57.2]} 10... c5 {[%clk 0:02:38.6]} 11.
dxc5 {[%clk 0:02:50.9]} 11... Qxd1 {[%clk 0:02:37.5]} 12. Rxd1 {[%clk
0:02:50.6]} 12... Bxf3 {[%clk 0:02:35.4]} 13. gxf3 {[%clk 0:02:50.2]} 13... Na6
{[%clk 0:02:36.2]} 14. Be3 {[%clk 0:02:44.6]} 14... Rfc8 {[%clk 0:02:11.6]} 15.
Bxa6 {[%clk 0:02:38]} 15... bxa6 {[%clk 0:02:12]} 16. Rd7 {[%clk 0:02:37.9]}
16... Rab8 {[%clk 0:02:09.4]} 17. b3 {[%clk 0:02:29.8]} 17... Bxc3 {[%clk
0:02:02.4]} 18. Rc1 {[%clk 0:02:29.5]} 18... Bb4 {[%clk 0:02:02.6]} 19. Rxa7
{[%clk 0:02:25.5]} 19... Rc6 {[%clk 0:02:02.5]} 20. Rxe7 {[%clk 0:02:10.6]}
20... Rbc8 {[%clk 0:02:02.5]} 21. Re5 {[%clk 0:02:06.1]} 21... Kf8 {[%clk
0:01:46.1]} 22. Kf2 {[%clk 0:02:03.9]} 22... f6 {[%clk 0:01:46.4]} 23. Rd5
{[%clk 0:02:03.7]} 23... Ke7 {[%clk 0:01:46.3]} 24. Rc4 {[%clk 0:02:02.9]} 24...
a5 {[%clk 0:01:43.9]} 25. f5 {[%clk 0:02:02]} 25... g5 {[%clk 0:01:36.8]} 26.
Re4+ {[%clk 0:01:58.8]} 26... Kf8 {[%clk 0:01:36.7]} 27. Rc4 {[%clk 0:01:51.7]}
27... Ke7 {[%clk 0:01:33.5]} 28. f4 {[%clk 0:01:46]} 28... g4 {[%clk 0:01:33.5]}
29. Kg3 {[%clk 0:01:40.5]} 29... h5 {[%clk 0:01:33.5]} 30. Bf2 {[%clk
0:01:34.5]} 30... Kf8 {[%clk 0:01:19.9]} 31. Kh4 {[%clk 0:01:32.4]} 31... Kg7
{[%clk 0:01:17.1]} 32. Re4 {[%clk 0:00:54.8]} 32... Bxc5 {[%clk 0:00:59.9]} 33.
Rd7+ {[%clk 0:00:51.3]} 33... Kh6 {[%clk 0:00:59.4]} 34. Bxc5 {[%clk 0:00:50.9]}
34... Rxc5 {[%clk 0:01:00.2]} 35. Ree7 {[%clk 0:00:51.2]} 35... Rh8 {[%clk
0:00:50.1]} 36. Rd6 {[%clk 0:00:39.9]} 36... Rxf5 {[%clk 0:00:49.5]} 37. Re5
{[%clk 0:00:39.9]} 37... Kg6 {[%clk 0:00:41]} 38. Rxf5 {[%clk 0:00:37]} 38...
Kxf5 {[%clk 0:00:38.1]} 39. Rd5+ {[%clk 0:00:37.3]} 39... Kxf4 {[%clk
0:00:37.1]} 40. Rxa5 {[%clk 0:00:37.3]} 40... f5 {[%clk 0:00:35]} 41. b4 {[%clk
0:00:35.3]} 41... Ke4 {[%clk 0:00:31.4]} 42. Ra7 {[%clk 0:00:30.4]} 42... f4
{[%clk 0:00:30.5]} 43. Re7+ {[%clk 0:00:29.9]} 43... Kd3 {[%clk 0:00:27.9]} 44.
b5 {[%clk 0:00:27.3]} 44... f3 {[%clk 0:00:19.6]} 45. Kg3 {[%clk 0:00:25.5]}
45... Ra8 {[%clk 0:00:18.4]} 46. Rd7+ {[%clk 0:00:18.5]} 46... Ke3 {[%clk
0:00:17.9]} 47. Re7+ {[%clk 0:00:18.5]} 47... Kd3 {[%clk 0:00:18.3]} 48. Rd7+
{[%clk 0:00:17.9]} 48... Ke4 {[%clk 0:00:18]} 49. Re7+ {[%clk 0:00:17.2]} 49...
Kf5 {[%clk 0:00:18.1]} 50. b6 {[%clk 0:00:14.6]} 50... Rxa2 {[%clk 0:00:17.5]}
51. b7 {[%clk 0:00:11.9]} 51... Rg2+ {[%clk 0:00:17.5]} 52. Kh4 {[%clk
0:00:12.1]} 52... Rxh2+ {[%clk 0:00:17.9]} 53. Kg3 {[%clk 0:00:12.4]} 53... Rb2
{[%clk 0:00:17.2]} 54. Rh7 {[%clk 0:00:10.5]} 54... Kg5 {[%clk 0:00:17]} 55.
Rg7+ {[%clk 0:00:10.3]} 55... Kf6 {[%clk 0:00:17.3]} 56. Rh7 {[%clk 0:00:10.4]}
56... Kg6 {[%clk 0:00:17.2]} 57. Rc7 {[%clk 0:00:10.2]} 57... Kg5 {[%clk
0:00:14.5]} 58. Rc5+ {[%clk 0:00:09.4]} 58... Kh6 {[%clk 0:00:13.7]} 59. Rc6+
{[%clk 0:00:09.8]} 59... Kg7 {[%clk 0:00:14]} 60. Rc7+ {[%clk 0:00:09.9]} 60...
Kf6 {[%clk 0:00:14.2]} 61. Rc6+ {[%clk 0:00:10.2]} 61... Ke7 {[%clk 0:00:14.7]}
62. Rh6 {[%clk 0:00:09.7]} 62... Rg2+ {[%clk 0:00:12.9]} 63. Kf4 {[%clk
0:00:08.9]} 63... Rb2 {[%clk 0:00:12]} 64. Kg3 {[%clk 0:00:08.7]} 64... Kd7
{[%clk 0:00:11.7]} 65. Rxh5 {[%clk 0:00:06.6]} 65... Rg2+ {[%clk 0:00:12.4]} 66.
Kf4 {[%clk 0:00:06.1]} 66... Kc7 {[%clk 0:00:13]} 67. Rh7+ {[%clk 0:00:03.4]}
67... Kb8 {[%clk 0:00:13.2]} 68. Ke3 {[%clk 0:00:03.9]} 68... Re2+ {[%clk
0:00:12.5]} 69. Kf4 {[%clk 0:00:03.9]} 69... f2 {[%clk 0:00:12.6]} 70. Rh1
{[%clk 0:00:01.3]} 70... Re1 {[%clk 0:00:12.9]} 0-1